bitfinex-derivatives/quotes_SOLF0:USTF0_20250703
["timestamp","ask_amount","ask_price","bid_price","bid_amount"]
[1751505090222,6.5488,152.64,152.62,12.6603238]
[1751505091120,6.5482,152.65,152.62,12.6603238]
[1751505091319,7.78265202,152.69,152.63,6.5489]
[1751505092316,6.548,152.66,152.63,6.5489]
[1751505092820,6.5483,152.65,152.62,12.6602238]
[1751505093419,6.5483,152.65,152.63,6.5489]
[1751505093919,6.5483,152.65,152.62,12.6602238]
[1751505094222,6.5486,152.64,152.62,6.1110238]
[1751505094518,7.78265202,152.69,152.62,6.1110238]
[1751505094718,3.75816158,152.67,152.62,6.1110238]
[1751505095420,3.75816158,152.67,152.62,0.04579159]
[1751505096622,6.5489,152.63,152.62,0.04579159]
[1751505097721,6.5486,152.64,152.62,0.04579159]
[1751505097922,6.5486,152.64,152.62,6.1110238]
[1751505098822,6.5489,152.63,152.62,6.1110238]
[1751505099323,6.5489,152.63,152.62,0.04579159]
[1751505107525,6.5489,152.63,152.62,6.13868334]
[1751505108626,3.75816158,152.64,152.61,6.09289175]
[1751505108832,3.75816158,152.62,152.59,6.09289175]
[1751505109233,6.5502,152.6,152.59,6.09289175]
[1751505109433,3.75816158,152.62,152.58,6.09289175]
[1751505109930,3.75816158,152.62,152.59,6.09289175]
[1751505110321,6.5502,152.6,152.59,6.09289175]
[1751505111131,6.5499,152.61,152.59,6.09289175]
[1751505111728,6.59968917,152.62,152.59,12.64339175]
[1751505111931,0.05028917,152.62,152.58,3.75816158]
[1751505112229,0.05028917,152.62,152.61,6.09222464]
[1751505113131,0.05028917,152.62,152.6,6.09222464]
[1751505114234,6.5498,152.61,152.6,6.09222464]
[1751505114434,0.05028917,152.62,152.59,6.09222464]
[1751505114732,6.5502,152.6,152.59,6.09222464]
[1751505116037,6.5502,152.6,152.58,6.09222464]
[1751505117434,6.5507,152.59,152.58,6.09222464]
[1751505117734,0.05028917,152.62,152.57,54.52682464]
[1751505118136,6.5507,152.59,152.57,54.52682464]
[1751505118634,6.551,152.59,152.57,52.25222464]
[1751505119438,6.551,152.59,152.57,46.16]
[1751505119933,0.05028917,152.62,152.57,52.25222464]
[1751505120437,6.55,152.61,152.58,6.5508]
[1751505120641,0.05028917,152.62,152.58,6.09222464]
[1751505121139,6.59988917,152.62,152.59,6.5506]
[1751505121338,0.05028917,152.62,152.59,6.09222464]
[1751505121538,0.05028917,152.62,152.6,12.64212464]
[1751505122740,0.05028917,152.62,152.61,6.5498]
[1751505123444,0.05028917,152.62,152.6,16.40048622]
[1751505123742,0.05028917,152.62,152.59,6.09222464]
[1751505124741,6.59988917,152.62,152.59,12.64262464]
[1751505125334,0.05028917,152.62,152.6,6.5502]
[1751505125840,0.05028917,152.62,152.59,6.09222464]
[1751505127042,0.05028917,152.62,152.6,6.5502]
[1751505127742,6.59968917,152.62,152.59,12.64272464]
[1751505136651,6.5499,152.61,152.59,12.64272464]
[1751505136951,0.05028917,152.62,152.59,12.64272464]
[1751505137147,6.59978917,152.62,152.59,12.64272464]
[1751505141654,6.5499,152.61,152.59,12.64272464]
[1751505141859,0.05028917,152.62,152.59,6.09222464]
[1751505143568,6.55,152.61,152.59,12.64282464]
[1751505144260,6.55,152.61,152.59,6.09222464]
[1751505145767,6.55,152.61,152.59,12.64282464]
[1751505147569,6.55,152.61,152.59,6.09222464]
[1751505149270,6.59998917,152.62,152.59,12.64272464]
[1751505150068,6.5498,152.61,152.6,2.41723026]
[1751505150963,6.5502,152.6,152.59,6.09222464]
[1751505151165,2.41723026,152.6,152.58,6.09222464]
[1751505151775,6.5506,152.59,152.58,6.09222464]
[1751505154576,3.82879994,152.62,152.58,6.09222464]
[1751505154774,6.5505,152.6,152.59,6.09222464]
[1751505156577,6.55,152.61,152.59,6.09222464]
[1751505157673,6.59978917,152.62,152.6,6.09222464]
[1751505159173,10.83526082,152.62,152.6,6.09222464]
[1751505159380,6.59978917,152.62,152.6,6.09222464]
[1751505159575,10.83526082,152.62,152.6,6.09222464]
[1751505159770,6.59978917,152.62,152.6,6.09222464]
[1751505159970,10.83526082,152.62,152.6,6.09222464]
[1751505160175,6.59978917,152.62,152.6,6.09222464]
[1751505160375,10.83526082,152.62,152.6,6.09222464]
[1751505160674,0.05028917,152.62,152.6,12.64242464]
[1751505160976,4.28576082,152.62,152.6,6.09222464]
[1751505161178,0.05028917,152.62,152.6,6.09222464]
[1751505161577,0.05028917,152.62,152.61,12.64202464]
[1751505161774,0.05028917,152.62,152.61,16.42053541]
[1751505163673,0.05028917,152.62,152.61,10.32831077]
[1751505168387,0.05028917,152.62,152.61,18.35451385]
[1751505170287,0.05028917,152.62,152.61,10.32831077]
[1751505175891,0.05028917,152.62,152.61,8.9660025]
[1751505181897,0.05028917,152.62,152.61,16.99220558]
[1751505183099,46.0,152.73,152.61,14.45550712]
[1751505183300,2.4162025,152.72,152.68,2.4162025]
[1751505183501,2.4162025,152.72,152.61,14.45550712]
[1751505183502,6.5453,152.72,152.69,2.4162025]
[1751505183691,48.4162025,152.73,152.69,8.9625025]
[1751505183997,2.4162025,152.72,152.69,2.4162025]
[1751505184199,6.5458,152.71,152.69,2.4162025]
[1751505184399,2.4162025,152.71,152.69,0.04530987]
[1751505184697,8.9621025,152.7,152.69,0.04530987]
[1751505185297,6.5459,152.7,152.69,0.04530987]
[1751505186099,8.9621025,152.7,152.69,0.04530987]
[1751505187800,6.5459,152.7,152.69,0.04530987]
[1751505189996,8.9621025,152.7,152.69,0.04530987]
[1751505191300,6.5459,152.7,152.69,0.04530987]
[1751505191501,6.5457,152.71,152.69,0.04530987]
[1751505192402,4.23044719,152.72,152.69,2.46151237]
[1751505192702,48.4162025,152.73,152.69,2.46151237]
[1751505192902,6.5459,152.7,152.69,0.04530987]
[1751505197705,8.9621025,152.7,152.69,0.04530987]
[1751505198703,8.9621025,152.7,152.69,9.87e-06]
[1751505199104,6.5459,152.7,152.69,9.87e-06]
[1751505199297,8.9621025,152.7,152.69,9.87e-06]
[1751505201606,6.5459,152.7,152.69,9.87e-06]
[1751505204608,6.58901735,152.71,152.69,2.41621237]
[1751505204907,0.04331735,152.71,152.69,2.41621237]
[1751505205108,0.04331735,152.71,152.7,2.4162025]
[1751505206601,0.04331735,152.71,152.7,8.9621025]
[1751505206810,0.04331735,152.71,152.7,2.4162025]
[1751505207206,0.04331735,152.71,152.7,8.9621025]
[1751505209302,0.04331735,152.71,152.69,9.87e-06]
[1751505209606,0.04331735,152.71,152.7,2.4162025]
[1751505211703,6.58881735,152.71,152.7,2.4162025]
[1751505212611,6.5459,152.7,152.69,2.41621237]
[1751505212811,6.5459,152.7,152.69,9.87e-06]
[1751505225226,10.81501545,152.7,152.69,9.87e-06]
[1751505228430,6.5459,152.7,152.69,9.87e-06]
[1751505242343,10.82713467,152.7,152.69,9.87e-06]
[1751505242644,6.5459,152.7,152.69,9.87e-06]
[1751505242843,10.82713467,152.7,152.69,9.87e-06]
[1751505243443,13.24196898,152.7,152.69,9.87e-06]
[1751505247639,10.82713467,152.7,152.69,9.87e-06]
[1751505249445,6.5459,152.7,152.69,9.87e-06]
[1751505250546,8.96073431,152.7,152.69,9.87e-06]
[1751505252840,52.55606898,152.7,152.63,8.10352087]
[1751505253051,2.41483431,152.64,152.6,45.86]
[1751505253250,6.5498,152.61,152.6,45.86]
[1751505253744,8.96503431,152.61,152.59,8.10352087]
[1751505253944,8.96503431,152.61,152.58,8.10352087]
[1751505254345,6.5495,152.62,152.58,8.10352087]
[1751505254649,2.41483431,152.61,152.58,10.51835518]
[1751505254840,2.41483431,152.62,152.58,10.51835518]
[1751505255043,8.96453431,152.62,152.59,2.41483431]
[1751505255851,6.5497,152.62,152.57,11.88097533]
[1751505256549,6.5497,152.62,152.58,6.5508]
[1751505258449,6.5499,152.61,152.58,6.551]
[1751505259852,6.5495,152.62,152.58,6.551]
[1751505260253,6.5495,152.62,152.59,6.5506]
[1751505266452,6.5491,152.63,152.59,3.77745446]
[1751505267159,6.5491,152.63,152.6,6.5498]
[1751505268161,6.5486,152.64,152.61,6.5497]
[1751505274764,6.5483,152.65,152.62,6.5493]
[1751505275452,0.04194151,152.65,152.63,6.5489]
[1751505277155,0.04194151,152.65,152.64,6.5485]
[1751505279064,0.04194151,152.65,152.63,10.32625446]
[1751505280664,6.59004151,152.65,152.63,10.32625446]
[1751505281164,0.04194151,152.65,152.63,10.32625446]
[1751505282968,0.04194151,152.65,152.64,6.5485]
[1751505283266,0.04194151,152.65,152.63,3.77745446]
[1751505283762,0.04194151,152.65,152.64,2.41590196]
[1751505286268,0.04194151,152.65,152.64,8.96440196]
[1751505286665,0.04194151,152.65,152.64,2.41590196]
[1751505286870,0.04194151,152.65,152.63,2.41590196]
[1751505287072,0.04194151,152.65,152.62,4.69340196]
[1751505287271,2.41590196,152.64,152.61,45.82]
[1751505287471,6.5494,152.62,152.61,45.82]
[1751505288073,6.5491,152.63,152.61,45.82]
[1751505288473,2.41590196,152.64,152.61,45.82]
[1751505288672,2.41590196,152.63,152.59,10.51942283]
[1751505288870,0.04194151,152.65,152.59,10.51942283]
[1751505289074,2.41590196,152.63,152.59,10.51942283]
[1751505289275,6.5494,152.62,152.6,2.41590196]
[1751505289673,0.04194151,152.65,152.59,17.06982283]
[1751505289869,0.04194151,152.65,152.59,8.10352087]
[1751505290075,0.04194151,152.65,152.6,11.88066807]
[1751505290272,6.5487,152.64,152.61,6.5497]
[1751505290473,0.04194151,152.65,152.61,6.5497]
[1751505291675,6.549,152.63,152.61,6.5497]
[1751505292581,6.5487,152.64,152.61,6.5497]
[1751505293686,6.59024151,152.65,152.62,6.5493]
[1751505294884,0.04194151,152.65,152.64,10.3256472]
[1751505297481,0.04194151,152.65,152.64,6.5485]
[1751505297681,0.04194151,152.65,152.64,10.3256472]
[1751505298591,0.04194151,152.65,152.63,6.5487]
[1751505299594,6.59004151,152.65,152.63,6.5487]
[1751505301493,0.04194151,152.65,152.62,45.76]
[1751505301885,3.81908871,152.65,152.6,2.258]
[1751505302093,6.5493,152.63,152.6,8.8079]
[1751505303292,0.04194151,152.65,152.6,6.0351472]
[1751505303496,0.04194151,152.65,152.61,8.10352087]
[1751505303697,0.04194151,152.65,152.62,3.7771472]
[1751505303996,0.04194151,152.65,152.63,6.5487]
[1751505305400,0.04194151,152.65,152.61,8.10352087]
[1751505305597,0.04194151,152.65,152.6,14.13866807]
[1751505305896,0.04194151,152.65,152.6,6.0351472]
[1751505306297,6.5488,152.64,152.61,6.5497]
[1751505307998,6.59014151,152.65,152.62,6.5493]
[1751505308897,0.04194151,152.65,152.63,6.5487]
[1751505309102,0.04194151,152.65,152.62,11.88066807]
[1751505309301,0.04194151,152.65,152.62,3.7771472]
[1751505310496,6.59004151,152.65,152.62,10.3262472]
[1751505310900,0.04194151,152.65,152.62,10.3262472]
[1751505311701,6.5485,152.64,152.62,3.7771472]
[1751505312400,6.5485,152.64,152.61,52.2897]
[1751505312803,6.5485,152.64,152.62,6.11635584]
[1751505312999,6.59004151,152.65,152.62,12.66565584]
[1751505314603,6.59004151,152.65,152.63,6.11635584]
[1751505314903,6.59004151,152.65,152.62,12.66565584]
[1751505315100,0.04194151,152.65,152.63,6.11635584]
[1751505315404,0.04194151,152.65,152.64,6.11635584]
[1751505316300,0.04194151,152.65,152.64,16.44200304]
[1751505316503,0.04194151,152.65,152.64,10.3256472]
[1751505316702,0.04194151,152.65,152.64,18.42916807]
[1751505320010,0.04194151,152.65,152.64,10.3256472]
[1751505320510,0.04194151,152.65,152.64,6.5485]
[1751505320907,0.04194151,152.65,152.64,14.65202087]
[1751505322511,0.04194151,152.65,152.64,6.5485]
[1751505322711,0.04194151,152.65,152.64,14.69402347]
[1751505323110,0.04194151,152.65,152.64,8.14552347]
[1751505323612,0.04194151,152.65,152.64,6.5485]
[1751505324913,0.04194151,152.65,152.64,14.69402347]
[1751505325614,0.04194151,152.65,152.64,6.5485]
[1751505325813,0.04194151,152.65,152.64,14.69402347]
[1751505326313,0.04194151,152.65,152.64,6.5485]
[1751505331514,0.04194151,152.65,152.64,6.10796612]
[1751505331718,0.04194151,152.65,152.63,6.10796612]
[1751505332016,6.5485,152.64,152.61,51.84796612]
[1751505332216,6.5485,152.64,152.62,6.10796612]
[1751505335313,6.5489,152.63,152.61,52.2896]
[1751505335519,6.5489,152.63,152.62,6.10932142]
[1751505336119,6.5487,152.64,152.62,6.10932142]
[1751505336418,0.04194151,152.65,152.62,6.10932142]
[1751505337424,6.5486,152.64,152.62,6.10932142]
[1751505337720,0.04194151,152.65,152.62,6.10932142]
[1751505338019,0.04194151,152.65,152.62,9.88646862]
[1751505338716,0.04194151,152.65,152.63,6.5489]
[1751505340021,0.04194151,152.65,152.62,9.88646862]
[1751505340320,0.04194151,152.65,152.63,6.10932142]
[1751505340518,0.04194151,152.65,152.64,6.5485]
[1751505342920,0.04194151,152.65,152.63,12.65802142]
[1751505344822,6.59004151,152.65,152.63,6.10932142]
[1751505345122,0.04194151,152.65,152.63,6.10932142]
[1751505345321,3.81908871,152.65,152.61,6.10932142]
[1751505345622,3.7771472,152.63,152.57,6.10932142]
[1751505345824,3.7771472,152.6,152.56,6.10932142]
[1751505346027,3.7771472,152.6,152.55,6.10932142]
[1751505347526,6.5519,152.57,152.55,6.10932142]
[1751505348118,6.5519,152.57,152.54,58.38212142]
[1751505348322,50.1204,152.62,152.54,51.82932142]
[1751505348620,3.7771472,152.59,152.54,51.82932142]
[1751505348821,6.5513,152.58,152.55,6.5522]
[1751505349922,3.7771472,152.59,152.54,51.82932142]
[1751505350421,6.5515,152.57,152.54,58.38182142]
[1751505351425,6.59489012,152.58,152.55,6.5523]
[1751505354630,6.5515,152.57,152.54,52.2726]
[1751505355032,0.04359012,152.58,152.54,45.72]
[1751505355532,6.5518,152.57,152.54,45.72]
[1751505356534,3.7771472,152.57,152.52,6.10932142]
[1751505356832,3.7771472,152.57,152.51,6.10932142]
[1751505357030,6.5526,152.55,152.52,6.5536]
[1751505358535,6.5521,152.56,152.53,6.5532]
[1751505360438,6.5516,152.57,152.54,6.5526]
[1751505360737,3.7771472,152.59,152.52,3.7771472]
[1751505360935,3.7771472,152.6,152.54,3.7771472]
[1751505361138,6.0672472,152.64,152.56,3.7771472]
[1751505361334,0.04198949,152.57,152.56,3.7771472]
[1751505361537,0.04198949,152.57,152.56,10.3290472]
[1751505361735,6.5496,152.62,152.56,3.7771472]
[1751505362130,0.0475023,152.58,152.56,3.7771472]
[1751505362332,0.0475023,152.58,152.57,6.5515]
[1751505365141,0.0475023,152.58,152.57,12.66082142]
[1751505365442,0.0475023,152.58,152.57,6.5515]
[1751505365948,6.5484,152.65,152.61,6.5494]
[1751505366340,6.0028472,152.68,152.61,6.5494]
[1751505366641,6.5484,152.65,152.61,6.5494]
[1751505366944,6.0028472,152.68,152.61,6.5494]
[1751505367342,6.0028472,152.68,152.62,6.5493]
[1751505367543,6.5483,152.65,152.61,0.04785764]
[1751505367945,6.5483,152.65,152.61,6.59745764]
[1751505369650,6.5486,152.64,152.61,6.59745764]
[1751505370950,6.5489,152.63,152.61,0.04785764]
[1751505371250,3.7771472,152.66,152.61,0.04785764]
[1751505372653,6.5487,152.64,152.61,6.59725764]
[1751505375561,6.549,152.63,152.61,0.04785764]
[1751505377855,3.7771472,152.67,152.61,6.59755764]
[1751505378558,6.5488,152.64,152.61,6.59755764]
[1751505379363,6.549,152.63,152.61,0.04785764]
[1751505384766,6.5494,152.62,152.61,0.04785764]
[1751505386369,3.7771472,152.67,152.61,6.59765764]
[1751505387368,6.5483,152.65,152.62,6.5492]
[1751505387868,6.5483,152.65,152.62,10.3263472]
[1751505389470,6.5483,152.65,152.63,6.5489]
[1751505391770,6.5478,152.66,152.63,6.5489]
[1751505391969,52.0043472,152.69,152.63,6.5489]
[1751505392367,52.0043472,152.69,152.62,3.7771472]
[1751505392567,3.7771472,152.65,152.61,0.04785764]
[1751505392868,6.5494,152.62,152.61,5.764e-05]
[1751505403570,10.3265472,152.62,152.61,5.764e-05]
[1751505422296,45.74,152.64,152.61,5.764e-05]
[1751505422792,6.5486,152.64,152.61,6.54975764]
[1751505423596,6.5491,152.63,152.61,5.764e-05]
[1751505424995,0.04513182,152.65,152.61,5.764e-05]
[1751505424996,6.5494,152.62,152.61,5.764e-05]
[1751505426004,6.5491,152.63,152.61,5.764e-05]
[1751505427403,6.5488,152.64,152.61,6.54975764]
[1751505427604,0.04513182,152.65,152.61,5.764e-05]
[1751505428005,6.5492,152.63,152.61,5.764e-05]
[1751505428902,6.5486,152.64,152.61,5.764e-05]
[1751505430106,6.59353182,152.65,152.62,6.5491]
[1751505431109,0.04513182,152.65,152.63,6.5489]
[1751505431305,0.04513182,152.65,152.63,10.3260472]
[1751505431904,0.04513182,152.65,152.64,6.5484]
[1751505432205,81.99491045,152.71,152.65,3.7771472]
[1751505432508,6.5466,152.69,152.66,6.5473]
[1751505433211,88.54061045,152.71,152.68,6.5467]
[1751505433907,81.99491045,152.71,152.69,6.5463]
[1751505435009,88.54041045,152.71,152.68,6.58822383]
[1751505437008,6.5455,152.71,152.68,6.58822383]
[1751505437611,3.7771472,152.73,152.68,0.04162383]
[1751505438112,6.5461,152.7,152.68,0.04162383]
[1751505441014,1.1398251,152.76,152.68,0.04162383]
[1751505441214,3.7771472,152.75,152.69,3.7771472]
[1751505441610,6.5449,152.73,152.7,6.5459]
[1751505442316,49.4971472,152.77,152.71,6.5454]
[1751505442519,45.72,152.77,152.71,3.7771472]
[1751505442713,3.7771472,152.78,152.71,3.7771472]
[1751505443016,6.5442,152.75,152.71,10.3223472]
[1751505443318,3.7771472,152.78,152.7,2.19408396]
[1751505443514,3.7771472,152.76,152.7,12.51713116]
[1751505444218,6.5447,152.73,152.7,12.51713116]
[1751505444920,3.7771472,152.76,152.7,2.19408396]
[1751505445120,3.7771472,152.74,152.7,0.04438396]
[1751505446518,6.5455,152.71,152.7,0.04438396]
[1751505449918,6.5455,152.71,152.7,8.396e-05]
[1751505457722,6.5479,152.66,152.63,6.5487]
[1751505458319,6.5474,152.67,152.63,6.5487]
[1751505459025,6.5474,152.67,152.64,6.5485]
[1751505459425,6.5474,152.67,152.62,51.7287472]
[1751505459725,6.5474,152.67,152.63,6.5488]
[1751505462923,6.5478,152.66,152.63,6.5488]
[1751505463128,6.5478,152.66,152.62,58.2779472]
[1751505463829,6.58914543,152.66,152.62,58.2779472]
[1751505465829,6.58914543,152.66,152.63,6.5488]
[1751505466025,0.04134543,152.66,152.63,6.5488]
[1751505466532,6.58904543,152.66,152.63,6.5488]
[1751505466833,6.58904543,152.66,152.62,58.2779472]
[1751505467133,6.58904543,152.66,152.62,64.36357117]
[1751505468235,6.58904543,152.66,152.63,6.5488]
[1751505469636,0.04134543,152.66,152.63,6.5488]
[1751505470436,6.58904543,152.66,152.63,6.5488]
[1751505470736,0.04134543,152.66,152.62,55.52277117]
[1751505471635,0.04134543,152.66,152.64,3.7771472]
[1751505471836,0.04134543,152.66,152.64,9.86277117]
[1751505472536,0.04134543,152.66,152.65,6.5481]
[1751505473036,0.04134543,152.66,152.64,3.7771472]
[1751505473234,0.04134543,152.66,152.64,9.86277117]
[1751505473537,0.04134543,152.66,152.64,16.41097117]
[1751505473737,0.04134543,152.66,152.64,9.86277117]
[1751505475742,0.04134543,152.66,152.65,6.5481]
[1751505476240,0.04134543,152.66,152.65,12.63372397]
[1751505476842,0.04134543,152.66,152.65,6.5481]
[1751505477138,0.04134543,152.66,152.65,12.63631529]
[1751505477741,0.04134543,152.66,152.65,6.5481]
[1751505479346,0.04134543,152.66,152.65,12.63598251]
[1751505481144,0.04134543,152.66,152.65,6.5481]
[1751505485147,0.04134543,152.66,152.65,12.64328382]
[1751505485643,0.04134543,152.66,152.65,6.09518382]
[1751505485848,0.04134543,152.66,152.64,6.09518382]
[1751505486245,6.58914543,152.66,152.64,6.09518382]
[1751505487155,0.04134543,152.66,152.64,12.64358382]
[1751505491646,0.04134543,152.66,152.65,6.5481]
[1751505491847,0.04134543,152.66,152.65,12.64328382]
[1751505492549,0.04134543,152.66,152.65,6.5481]
[1751505493551,0.04134543,152.66,152.65,14.69362347]
[1751505505260,0.04134543,152.66,152.65,8.14552347]
[1751505506162,0.04134543,152.66,152.65,6.5481]
[1751505507059,0.04134543,152.66,152.65,10.3252472]
[1751505507962,0.04134543,152.66,152.65,18.47077067]
[1751505510662,0.04134543,152.66,152.65,18.4664331]
[1751505511965,0.04134543,152.66,152.65,14.69362347]
[1751505514165,0.04134543,152.66,152.64,53.76552347]
[1751505514565,0.04134543,152.66,152.65,6.11011377]
[1751505515268,0.04134543,152.66,152.65,6.5481]
[1751505516668,0.04134543,152.66,152.64,60.31382347]
[1751505518765,0.04134543,152.66,152.65,6.11061844]
[1751505519370,0.04134543,152.66,152.64,58.27891844]
[1751505520271,6.58914543,152.66,152.64,58.27891844]
[1751505520460,6.58914543,152.66,152.65,6.11061844]
[1751505521068,0.04134543,152.66,152.65,6.11061844]
[1751505521266,0.04134543,152.66,152.64,58.27891844]
[1751505523371,6.58904543,152.66,152.64,58.27891844]
[1751505524568,6.58904543,152.66,152.64,51.73061844]
[1751505524767,6.5481,152.65,152.64,51.73061844]
[1751505524971,6.5481,152.65,152.64,45.62]
[1751505526275,10.63227036,152.65,152.64,45.62]
[1751505526977,10.63227036,152.65,152.63,6.11061844]
[1751505527178,6.5481,152.65,152.63,6.11061844]
[1751505528871,6.5485,152.64,152.63,6.11061844]
[1751505529078,6.5485,152.64,152.61,16.43281303]
[1751505529277,6.5485,152.64,152.62,6.10884061]
[1751505529478,6.5485,152.64,152.62,12.65814061]
[1751505529780,6.5485,152.64,152.62,6.10884061]
[1751505530380,6.5485,152.64,152.61,16.43281303]
[1751505530981,6.5485,152.64,152.62,6.5493]
[1751505531883,6.5485,152.64,152.62,12.65814061]
[1751505534389,4.59359136,152.65,152.62,6.10884061]
[1751505534589,0.04134543,152.66,152.63,3.77437242]
[1751505534780,4.5935914,152.65,152.63,3.77437242]
[1751505534985,6.58904543,152.66,152.63,10.32297242]
[1751505535183,4.59359139,152.65,152.63,10.32297242]
[1751505535389,6.58904543,152.66,152.63,16.42669982]
[1751505536790,6.58904543,152.66,152.63,10.32297242]
[1751505537485,6.58904543,152.66,152.64,6.5484]
[1751505537690,0.04134543,152.66,152.63,3.77437242]
[1751505538087,0.04134543,152.66,152.65,6.5481]
[1751505545697,0.04134543,152.66,152.65,12.65400944]
[1751505545900,0.04134543,152.66,152.65,15.06941286]
[1751505549105,0.04134543,152.66,152.65,8.96350342]
[1751505549295,0.04134543,152.66,152.65,17.10138126]
[1751505551698,3.89066575,152.75,152.65,2.41540342]
[1751505551699,6.30606917,152.75,152.65,2.41540342]
[1751505551910,6.30606917,152.75,152.71,2.41540342]
[1751505552300,6.5443,152.74,152.72,2.41540342]
[1751505552811,6.5443,152.74,152.73,2.41540342]
[1751505553310,6.5439,152.75,152.73,2.41540342]
[1751505554211,2.41540342,152.75,152.72,0.04223186]
[1751505554808,6.5445,152.74,152.72,0.04223186]
[1751505559509,6.5445,152.74,152.72,6.58723186]
[1751505561110,6.544,152.75,152.72,6.58723186]
[1751505561511,7.71384754,152.77,152.72,6.58723186]
[1751505561807,7.71384754,152.77,152.72,0.04223186]
[1751505562407,7.71384754,152.77,152.72,6.58713186]
[1751505562712,45.5,152.8,152.73,3.77130266]
[1751505562911,3.94939905,152.79,152.72,0.04223186]
[1751505563209,3.94939905,152.79,152.73,6.5445]
[1751505563400,6.5432,152.77,152.72,3.81353452]
[1751505563606,3.94939905,152.79,152.74,3.77130266]
[1751505563807,10.74020266,152.82,152.76,3.77130266]
[1751505564013,6.5419,152.8,152.77,6.5427]
[1751505564310,3.77130266,152.82,152.76,3.77130266]
[1751505564908,6.5423,152.79,152.76,10.31450266]
[1751505565108,3.77130266,152.82,152.74,3.77130266]
[1751505565308,6.5424,152.79,152.75,6.5434]
[1751505565514,6.5424,152.79,152.74,3.77130266]
[1751505566116,3.77130266,152.82,152.76,6.5433]
[1751505566812,6.5423,152.79,152.76,6.5433]
[1751505567010,3.77130266,152.82,152.75,0.04252861]
[1751505567515,6.5428,152.78,152.75,6.58622861]
[1751505572018,6.5422,152.79,152.76,6.5433]
[1751505572216,3.77130266,152.82,152.75,0.04252861]
[1751505573414,6.5424,152.79,152.76,6.5433]
[1751505573615,3.77130266,152.82,152.75,0.04252861]
[1751505573911,6.543,152.77,152.75,6.58612861]
[1751505574111,3.77130266,152.82,152.75,6.58612861]
[1751505574320,3.77130266,152.8,152.75,0.04252861]
[1751505574515,6.5433,152.76,152.75,0.04252861]
[1751505574710,6.5433,152.76,152.72,45.4]
[1751505574711,3.77130266,152.76,152.72,45.4]
[1751505574918,4.5516,152.79,152.72,49.17130266]
[1751505575117,6.544,152.75,152.72,55.71610266]
[1751505575720,6.5435,152.76,152.72,55.71610266]
[1751505576912,6.58614632,152.76,152.72,55.71610266]
[1751505577112,6.58614632,152.76,152.73,6.5445]
[1751505578421,0.04264632,152.76,152.72,45.4]
[1751505579021,0.04264632,152.76,152.72,51.9447]
[1751505579022,6.544,152.75,152.72,51.9447]
[1751505581525,6.5443,152.74,152.72,45.4]
[1751505581822,6.5443,152.74,152.73,2.41316717]
[1751505583222,0.04264632,152.76,152.71,6.5455]
[1751505583422,2.41316717,152.74,152.7,2.41316717]
[1751505583623,2.41316717,152.73,152.69,2.41316717]
[1751505584026,2.41316717,152.73,152.69,8.95926717]
[1751505584224,2.41316717,152.74,152.7,2.41316717]
[1751505584825,2.2399,152.76,152.69,2.41316717]
[1751505584826,6.5454,152.72,152.69,2.41316717]
[1751505585124,6.5454,152.72,152.68,2.41316717]
[1751505585125,2.41316717,152.72,152.68,2.41316717]
[1751505585426,6.546,152.7,152.68,2.41316717]
[1751505586024,6.546,152.7,152.67,617.5869]
[1751505587122,0.04397309,152.72,152.67,45.4]
[1751505587326,3.77298216,152.69,152.63,56.02757767]
[1751505587525,3.77298216,152.69,152.63,49.9687]
[1751505587723,3.77298216,152.69,152.63,56.5173]
[1751505587922,3.77298216,152.69,152.63,56.02757767]
[1751505588120,3.77298216,152.69,152.63,49.9687]
[1751505588320,6.5477,152.66,152.63,62.57647767]
[1751505588828,6.5473,152.67,152.64,6.5485]
[1751505589621,6.5477,152.66,152.63,58.02767767]
[1751505590328,6.5477,152.66,152.64,6.5485]
[1751505591524,0.04404193,152.68,152.63,51.47887767]
[1751505591729,0.04404193,152.68,152.63,45.42]
[1751505593224,3.77298216,152.67,152.63,45.42]
[1751505594830,6.5485,152.64,152.63,45.42]
[1751505595728,6.5485,152.64,152.61,6.5495]
[1751505596427,3.77298216,152.67,152.6,575.82308216]
[1751505596930,6.5481,152.65,152.61,6.5495]
[1751505597535,6.5478,152.66,152.62,3.77298216]
[1751505598630,6.59000905,152.66,152.63,6.5487]
[1751505599728,0.04220905,152.66,152.64,6.5485]
[1751505601232,0.04220905,152.66,152.65,6.5481]
[1751505601634,0.04220905,152.66,152.62,5.96718216]
[1751505601831,6.58990905,152.66,152.63,6.5486]
[1751505602835,0.04220905,152.66,152.64,6.5485]
[1751505603035,0.04220905,152.66,152.62,5.96718216]
[1751505603240,0.04220905,152.66,152.62,8.16608216]